fUST/lending_fUST_20250626
["ID","MTS","AMOUNT","RATE_DAILY","PERIOD"]
[367657874,1750889447325,-460.0,0.0001726,2]
[367657876,1750889447335,-841.68,0.00017534,2]
[367657878,1750889447343,-460.0,0.00017534,2]
[367657880,1750889447353,-841.68,0.00017808,2]
[367657882,1750889447363,-460.0,0.00017808,2]
[367657884,1750889447372,-841.68,0.00018082,2]
[367657886,1750889447381,-300.81,0.00018082,2]
[367657888,1750889447391,-841.68,0.00018356,2]
[367657890,1750889447400,-841.68,0.0001863,2]
[367657892,1750889447409,-1440.59444173,0.00018866,2]
[367657894,1750889447419,-841.68,0.00018904,2]
[367657896,1750889447428,-1440.59444173,0.00019107,2]
[367657898,1750889447437,-841.68,0.00019178,2]
[367657900,1750889447446,-516.71949718,0.00019348,2]
[367657903,1750889447458,-923.87494455,0.00019348,2]
[367657905,1750889447467,-841.68,0.00019452,2]
[367657907,1750889447476,-1440.59444173,0.0001959,2]
[367657908,1750889447487,-841.68,0.00019726,2]
[367657910,1750889447496,-1440.59444173,0.00019831,2]
[367657912,1750889447506,-1440.59444173,0.00020072,2]
[367657914,1750889447515,-1440.59444173,0.00020314,3]
[367657916,1750889447524,-1075.75884472,0.00020555,3]
[367657919,1750889447535,-364.83559701,0.00020555,3]
[367657921,1750889447545,-898.57590506,0.0002079,2]
[367657923,1750889447554,-317.0,0.0002079,2]
[367657925,1750889447563,-1440.59444173,0.00020797,4]
[367657927,1750889447572,-7198.01749982,0.00021,2]
[367657929,1750889447583,-2800.00000038,0.00021,2]
[367657931,1750889447594,-790.0325986,0.00021,2]
[367657933,1750889447605,-113779.41730023,0.00021,2]
[367657956,1750889447815,-460.0,0.00016438,2]
[367657958,1750889447825,-841.68,0.0002,2]
[367657960,1750889447835,-841.68,0.00020273,2]
[367657962,1750889447845,-841.68,0.00020547,2]
[367657964,1750889447854,-841.68,0.00020821,2]
[367657966,1750889447864,-14369.95892716,0.00021,2]
[367657968,1750889447876,-13832.89636971,0.00021,2]
[367657971,1750889447887,-805.06,0.00021,2]
[367657973,1750889447904,-460.0,0.00016438,2]
[367657975,1750889447914,-2952.33,0.00021,2]
[367657978,1750889447925,-3026.59199143,0.00021,2]
[367657980,1750889447937,-4071.07934608,0.00021,2]
[367657982,1750889447949,-1048.79303016,0.00021,2]
[367657984,1750889447961,-7423.92454442,0.00021,2]
[367659311,1750889674851,5829.40565353,0.00015795,2]
[367659312,1750889674873,19070.59434647,0.00015795,2]
[367659379,1750890631918,-11982.40337598,0.00016337,2]
[367659393,1750890632035,-3019.57400076,0.00016337,2]
[367659487,1750890637949,-154295.41236326,0.00016337,2]
[367659489,1750890637960,-520.66461539,0.00016338,2]
[367659491,1750890637970,-1200.0,0.00016434,2]
[367659493,1750890637980,-300.0,0.00016434,2]
[367659495,1750890637989,-300.0,0.00016436,2]
[367659496,1750890637999,-500.0,0.00016437,2]
[367659498,1750890638009,-500.0,0.00016437,2]
[367659500,1750890638018,-648.75240318,0.00016437,2]
[367659502,1750890638027,-363.93104541,0.00016437,2]
[367659503,1750890638039,-500.0,0.00016437,2]
[367659504,1750890638048,-403.18258233,0.00016437,2]
[367659505,1750890638058,-346.38451159,0.00016437,2]
[367659506,1750890638068,-500.0,0.00016437,2]
[367659507,1750890638077,-500.0,0.00016437,2]
[367659508,1750890638087,-500.0,0.00016437,2]
[367659509,1750890638096,-500.0,0.00016437,2]
[367659510,1750890638106,-367.65247475,0.00016437,2]
[367659511,1750890638115,-237.49659113,0.00016437,2]
[367659513,1750890638125,-500.0,0.00016437,2]
[367659514,1750890638134,-315.22871366,0.00016437,2]
[367659516,1750890638143,-413.24428784,0.00016437,2]
[367659518,1750890638153,-500.0,0.00016437,2]
[367659520,1750890638163,-500.0,0.00016437,2]
[367659522,1750890638172,-500.0,0.00016437,2]
[367659524,1750890638182,-487.68823842,0.00016437,2]
[367659526,1750890638191,-438.18420532,0.00016437,2]
[367659528,1750890638201,-500.0,0.00016437,2]
[367659530,1750890638210,-460.0,0.00016438,2]
[367659532,1750890638220,-460.0,0.00016438,2]
[367659534,1750890638230,-460.0,0.00016438,2]
[367659536,1750890638239,-460.0,0.00016438,2]
[367659538,1750890638248,-460.0,0.00016438,2]
[367659539,1750890638258,-460.0,0.00016438,2]
[367659540,1750890638267,-460.0,0.00016438,2]
[367659541,1750890638277,-460.0,0.00016438,2]
[367659542,1750890638286,-460.0,0.00016438,2]
[367659543,1750890638296,-460.0,0.00016438,2]
[367659544,1750890638305,-460.0,0.00016438,2]
[367659545,1750890638314,-460.0,0.00016438,2]
[367659546,1750890638323,-460.0,0.00016438,2]
[367659547,1750890638332,-460.0,0.00016438,2]
[367659548,1750890638342,-460.0,0.00016438,2]
[367659549,1750890638351,-460.0,0.00016438,2]
[367659550,1750890638361,-460.0,0.00016438,2]
[367659551,1750890638371,-460.0,0.00016438,2]
[367659552,1750890638380,-161.90401864,0.00016438,2]
[367659553,1750890638389,-364.55914982,0.00016438,2]
[367659554,1750890638398,-460.0,0.00016438,2]
[367659555,1750890638408,-460.0,0.00016438,2]
[367659556,1750890638417,-477.88,0.00016438,2]
[367659557,1750890638426,-460.0,0.00016438,2]
[367659558,1750890638435,-460.0,0.00016438,2]
[367659559,1750890638444,-495.86,0.00016438,2]
[367659560,1750890638454,-424.38785005,0.00016438,2]
[367659561,1750890638463,-443.92,0.00016438,2]
[367659562,1750890638472,-460.0,0.00016438,2]
[367659563,1750890638482,-460.0,0.00016438,2]
[367659564,1750890638491,-460.0,0.00016438,2]
[367659565,1750890638500,-460.0,0.00016438,2]
[367659566,1750890638511,-460.0,0.00016438,2]
[367659567,1750890638520,-460.0,0.00016438,2]
[367659568,1750890638530,-165.17548333,0.00016438,2]
[367659569,1750890638543,-460.0,0.00016438,2]
[367659570,1750890638553,-460.0,0.00016438,2]
[367659571,1750890638563,-460.0,0.00016438,2]
[367659572,1750890638572,-460.0,0.00016438,2]
[367659573,1750890638582,-460.0,0.00016438,2]
[367659574,1750890638591,-460.0,0.00016438,2]
[367659575,1750890638600,-460.0,0.00016438,2]
[367659576,1750890638609,-460.0,0.00016438,2]
[367659577,1750890638619,-460.0,0.00016438,2]
[367659578,1750890638628,-460.0,0.00016438,2]
[367659579,1750890638638,-460.0,0.00016438,2]
[367659580,1750890638647,-460.0,0.00016438,2]
[367659582,1750890638657,-460.0,0.00016438,2]
[367659583,1750890638666,-460.0,0.00016438,2]
[367659585,1750890638676,-460.0,0.00016438,2]
[367659587,1750890638685,-460.0,0.00016438,2]
[367659589,1750890638696,-460.0,0.00016438,2]
[367659590,1750890638706,-238.75495475,0.00016438,2]
[367659592,1750890638715,-460.0,0.00016438,2]
[367659594,1750890638725,-460.0,0.00016438,2]
[367659595,1750890638734,-460.0,0.00016438,2]
[367659596,1750890638743,-460.0,0.00016438,2]
[367659598,1750890638754,-460.0,0.00016438,2]
[367659600,1750890638764,-366.2609509,0.00016438,2]
[367659602,1750890638774,-460.0,0.00016438,2]
[367659604,1750890638784,-478.62,0.00016438,2]
[367659606,1750890638794,-460.0,0.00016438,2]
[367659608,1750890638803,-460.0,0.00016438,2]
[367659610,1750890638813,-460.0,0.00016438,2]
[367659612,1750890638822,-460.0,0.00016438,2]
[367659614,1750890638832,-460.0,0.00016438,2]
[367659616,1750890638842,-460.0,0.00016438,2]
[367659618,1750890638851,-460.0,0.00016438,2]
[367659620,1750890638861,-460.0,0.00016438,2]
[367659622,1750890638871,-460.0,0.00016438,2]
[367659624,1750890638880,-460.0,0.00016438,2]
[367659626,1750890638890,-544.65,0.00016438,2]
[367659628,1750890638899,-460.0,0.00016438,2]
[367659630,1750890638913,-460.0,0.00016438,2]
[367659632,1750890638922,-460.0,0.00016438,2]
[367659634,1750890638932,-591.8,0.00016438,2]
[367659636,1750890638942,-460.0,0.00016438,2]
[367659639,1750890638954,-460.0,0.00016438,2]
[367659641,1750890638963,-460.0,0.00016438,2]
[367659642,1750890638973,-1386.63,0.00016438,2]
[367659644,1750890638984,-460.0,0.00016438,2]
[367659646,1750890638994,-897.71,0.00016438,2]
[367659648,1750890639003,-686.18,0.00016438,2]
[367659651,1750890639012,-458.74,0.00016438,2]
[367659653,1750890639023,-952.47,0.00016438,2]
[367659655,1750890639032,-460.0,0.00016438,2]
[367659657,1750890639041,-556.65,0.00016438,2]
[367659659,1750890639050,-460.0,0.00016438,2]
[367659660,1750890639059,-460.0,0.00016438,2]
[367659663,1750890639070,-173.16453225,0.00016438,2]
[367659665,1750890639079,-460.0,0.00016438,2]
[367659667,1750890639088,-460.0,0.00016438,2]
[367659669,1750890639098,-460.0,0.00016438,2]
[367659671,1750890639108,-460.0,0.00016438,2]
[367659673,1750890639117,-460.0,0.00016438,2]
[367659675,1750890639126,-460.0,0.00016438,2]
[367659677,1750890639136,-460.0,0.00016438,2]
[367659679,1750890639145,-460.0,0.00016438,2]
[367659681,1750890639154,-460.0,0.00016438,2]
[367659683,1750890639164,-460.0,0.00016438,2]
[367659685,1750890639175,-460.0,0.00016438,2]
[367659687,1750890639185,-695.34,0.00016438,2]
[367659689,1750890639194,-460.0,0.00016438,2]
[367659691,1750890639204,-460.0,0.00016438,2]
[367659693,1750890639213,-460.0,0.00016438,2]
[367659696,1750890639223,-460.0,0.00016438,2]
[367659698,1750890639232,-460.0,0.00016438,2]
[367659700,1750890639242,-460.0,0.00016438,2]
[367659702,1750890639251,-460.0,0.00016438,2]
[367659704,1750890639261,-460.0,0.00016438,2]
[367659706,1750890639270,-460.0,0.00016438,2]
[367659708,1750890639279,-386.28,0.00016438,2]
[367659710,1750890639289,-460.0,0.00016438,2]
[367659712,1750890639298,-520.9462463,0.00016438,2]
[367659714,1750890639308,-460.0,0.00016438,2]
[367659716,1750890639317,-418.75110519,0.00016438,2]
[367659718,1750890639327,-460.0,0.00016438,2]
[367659720,1750890639338,-460.0,0.00016438,2]
[367659722,1750890639347,-547.44,0.00016438,2]
[367659725,1750890639357,-460.0,0.00016438,2]
[367659727,1750890639366,-460.0,0.00016438,2]
[367659729,1750890639376,-677.71,0.00016438,2]
[367659731,1750890639385,-460.0,0.00016438,2]
[367659733,1750890639395,-460.0,0.00016438,2]
[367659735,1750890639404,-460.0,0.00016438,2]
[367659737,1750890639414,-460.0,0.00016438,2]
[367659739,1750890639423,-460.0,0.00016438,2]
[367659741,1750890639432,-460.0,0.00016438,2]
[367659743,1750890639441,-460.0,0.00016438,2]
[367659745,1750890639450,-460.0,0.00016438,2]
[367659747,1750890639460,-666.71,0.00016438,2]
[367659749,1750890639469,-460.0,0.00016438,2]
[367659751,1750890639478,-460.0,0.00016438,2]
[367659754,1750890639488,-460.0,0.00016438,2]
[367659756,1750890639497,-497.59,0.00016438,2]
[367659759,1750890639506,-460.0,0.00016438,2]
[367659786,1750890639706,-460.0,0.00016438,2]
[367659789,1750890639717,-460.0,0.00016438,2]
[367659791,1750890639727,-460.0,0.00016438,2]
[367659793,1750890639736,-460.0,0.00016438,2]
[367659794,1750890639745,-460.0,0.00016438,2]
[367659796,1750890639754,-460.0,0.00016438,2]
[367659798,1750890639764,-460.0,0.00016438,2]
[367659801,1750890639774,-460.0,0.00016438,2]
[367659803,1750890639784,-460.0,0.00016438,2]
[367659805,1750890639794,-460.0,0.00016438,2]
[367659807,1750890639803,-588.0,0.00016681,5]
[367659809,1750890639812,-588.0,0.00016681,5]
[367659811,1750890639822,-588.0,0.00016681,5]
[367659813,1750890639831,-588.0,0.00016681,5]
[367659815,1750890639840,-460.0,0.00016712,2]
[367659817,1750890639849,-460.0,0.00016712,2]
[367659819,1750890639859,-460.0,0.00016712,2]
[367659821,1750890639868,-488.37,0.00016712,2]
[367659823,1750890639877,-460.0,0.00016712,2]
[367659825,1750890639887,-171.10283308,0.00016712,2]
[367659827,1750890639897,-498.37,0.00016712,2]
[367659829,1750890639910,-174.58656461,0.00016712,2]
[367659831,1750890639919,-460.0,0.00016712,2]
[367659833,1750890639928,-301.49,0.00016712,2]
[367659835,1750890639938,-460.0,0.00016712,2]
[367659837,1750890639947,-524.54463741,0.00016712,2]
[367659839,1750890639956,-460.0,0.00016712,2]
[367659841,1750890639966,-460.0,0.00016712,2]
[367659843,1750890639975,-478.62,0.00016712,2]
[367659845,1750890639985,-460.0,0.00016712,2]
[367659847,1750890639994,-460.0,0.00016712,2]
[367659849,1750890640004,-460.0,0.00016712,2]
[367659851,1750890640013,-460.0,0.00016712,2]
[367659853,1750890640022,-460.0,0.00016712,2]
[367659855,1750890640031,-460.0,0.00016712,2]
[367659857,1750890640041,-544.65,0.00016712,2]
[367659859,1750890640050,-460.0,0.00016712,2]
[367659861,1750890640059,-560.33,0.00016712,2]
[367659863,1750890640068,-591.8,0.00016712,2]
[367659865,1750890640078,-460.0,0.00016712,2]
[367659867,1750890640087,-460.0,0.00016712,2]
[367659869,1750890640097,-460.0,0.00016712,2]
[367659871,1750890640106,-1386.63,0.00016712,2]
[367659873,1750890640116,-897.71,0.00016712,2]
[367659875,1750890640125,-686.18,0.00016712,2]
[367659877,1750890640135,-952.47,0.00016712,2]
[367659879,1750890640144,-200.56559545,0.00016712,2]
[367659881,1750890640154,-460.0,0.00016712,2]
[367659883,1750890640163,-460.0,0.00016712,2]
[367659885,1750890640173,-460.0,0.00016712,2]
[367659887,1750890640182,-460.0,0.00016712,2]
[367659889,1750890640191,-460.0,0.00016712,2]
[367659891,1750890640201,-460.0,0.00016712,2]
[367659893,1750890640210,-460.0,0.00016712,2]
[367659895,1750890640220,-695.34,0.00016712,2]
[367659897,1750890640229,-485.08,0.00016712,2]
[367659899,1750890640238,-460.0,0.00016712,2]
[367659901,1750890640247,-473.05,0.00016712,2]
[367659903,1750890640256,-460.0,0.00016712,2]
[367659905,1750890640265,-460.0,0.00016712,2]
[367659907,1750890640274,-460.0,0.00016712,2]
[367659909,1750890640283,-460.0,0.00016712,2]
[367659911,1750890640293,-460.0,0.00016712,2]
[367659913,1750890640302,-460.0,0.00016712,2]
[367659915,1750890640311,-460.0,0.00016712,2]
[367659917,1750890640320,-460.0,0.00016712,2]
[367659919,1750890640330,-547.24,0.00016712,2]
[367659921,1750890640339,-677.71,0.00016712,2]
[367659923,1750890640348,-460.0,0.00016712,2]
[367659925,1750890640357,-460.0,0.00016712,2]
[367659927,1750890640367,-460.0,0.00016712,2]
[367659929,1750890640376,-666.71,0.00016712,2]
[367659931,1750890640385,-460.0,0.00016712,2]
[367659933,1750890640395,-460.0,0.00016712,2]
[367659935,1750890640404,-497.59,0.00016712,2]
[367659937,1750890640413,-460.0,0.00016712,2]
[367659939,1750890640423,-460.0,0.00016712,2]
[367659941,1750890640432,-600.36,0.00016712,2]
[367659943,1750890640441,-481.66748531,0.00016712,2]
[367659945,1750890640450,-460.0,0.00016712,2]
[367659947,1750890640460,-460.0,0.00016712,2]
[367659949,1750890640469,-460.0,0.00016712,2]
[367659951,1750890640478,-460.0,0.00016712,2]
[367659953,1750890640488,-460.0,0.00016712,2]
[367659955,1750890640498,-460.0,0.00016712,2]
[367659957,1750890640507,-1008.41610923,0.000169,2]
[367659959,1750890640517,-460.0,0.00016986,2]
[367659961,1750890640527,-460.0,0.00016986,2]
[367659963,1750890640536,-460.0,0.00016986,2]
[367659965,1750890640546,-460.0,0.00016986,2]
[367659967,1750890640556,-460.0,0.00016986,2]
[367659969,1750890640565,-478.62,0.00016986,2]
[367659971,1750890640574,-460.0,0.00016986,2]
[367659973,1750890640584,-460.0,0.00016986,2]
[367659975,1750890640593,-593.48,0.00016986,2]
[367659977,1750890640603,-544.65,0.00016986,2]
[367659979,1750890640612,-591.8,0.00016986,2]
[367659981,1750890640621,-460.0,0.00016986,2]
[367659983,1750890640631,-460.0,0.00016986,2]
[367659985,1750890640640,-1386.63,0.00016986,2]
[367659987,1750890640649,-897.71,0.00016986,2]
[367659989,1750890640658,-686.18,0.00016986,2]
[367659991,1750890640667,-952.47,0.00016986,2]
[367659993,1750890640676,-460.0,0.00016986,2]
[367659995,1750890640685,-460.0,0.00016986,2]
[367659997,1750890640695,-492.97787735,0.00016986,2]
[367659999,1750890640704,-460.0,0.00016986,2]
[367660001,1750890640715,-460.0,0.00016986,2]
[367660003,1750890640723,-460.0,0.00016986,2]
[367660005,1750890640733,-695.34,0.00016986,2]
[367660007,1750890640743,-460.0,0.00016986,2]
[367660009,1750890640752,-357.81,0.00016986,2]
[367660011,1750890640763,-460.0,0.00016986,2]
[367660013,1750890640772,-460.0,0.00016986,2]
[367660015,1750890640783,-677.71,0.00016986,2]
[367660017,1750890640792,-460.0,0.00016986,2]
[367660019,1750890640801,-460.0,0.00016986,2]
[367660021,1750890640810,-460.0,0.00016986,2]
[367660023,1750890640819,-666.71,0.00016986,2]
[367660025,1750890640828,-460.0,0.00016986,2]
[367660027,1750890640838,-460.0,0.00016986,2]
[367660029,1750890640847,-497.59,0.00016986,2]
[367660031,1750890640856,-460.0,0.00016986,2]
[367660033,1750890640865,-566.72,0.00016986,2]
[367660035,1750890640874,-607.05,0.00016986,2]
[367660037,1750890640883,-460.0,0.00016986,2]
[367660039,1750890640893,-460.0,0.00016986,2]
[367660041,1750890640902,-7115.87392781,0.00017,2]
[367660043,1750890640915,-1008.41610922,0.00017176,2]
[367660045,1750890640924,-460.0,0.0001726,2]
[367660047,1750890640933,-460.0,0.0001726,2]
[367660049,1750890640942,-460.0,0.0001726,2]
[367660051,1750890640952,-460.0,0.0001726,2]
[367660053,1750890640961,-536.22,0.0001726,2]
[367660055,1750890640971,-478.62,0.0001726,2]
[367660057,1750890640980,-460.0,0.0001726,2]
[367660059,1750890640990,-460.0,0.0001726,2]
[367660061,1750890641000,-544.65,0.0001726,2]
[367660063,1750890641009,-591.8,0.0001726,2]
[367660065,1750890641018,-460.0,0.0001726,2]
[367660067,1750890641027,-1386.63,0.0001726,2]
[367660069,1750890641036,-897.71,0.0001726,2]
[367660071,1750890641046,-686.18,0.0001726,2]
[367660073,1750890641056,-952.47,0.0001726,2]
[367660075,1750890641065,-460.0,0.0001726,2]
[367660077,1750890641075,-460.0,0.0001726,2]
[367660079,1750890641084,-460.0,0.0001726,2]
[367660081,1750890641093,-460.0,0.0001726,2]
[367660083,1750890641103,-460.0,0.0001726,2]
[367660085,1750890641113,-695.34,0.0001726,2]
[367660087,1750890641123,-460.0,0.0001726,2]
[367660089,1750890641132,-351.61,0.0001726,2]
[367660091,1750890641142,-677.71,0.0001726,2]
[367660093,1750890641151,-460.0,0.0001726,2]
[367660095,1750890641160,-460.0,0.0001726,2]
[367660097,1750890641169,-460.0,0.0001726,2]
[367660099,1750890641179,-666.71,0.0001726,2]
[367660101,1750890641188,-460.0,0.0001726,2]
[367660103,1750890641197,-460.0,0.0001726,2]
[367660105,1750890641207,-497.59,0.0001726,2]
[367660107,1750890641216,-460.0,0.0001726,2]
[367660109,1750890641226,-460.0,0.0001726,2]
[367660111,1750890641235,-317.0,0.00017314,2]
[367660113,1750890641244,-317.0,0.00017314,2]
[367660115,1750890641255,-317.0,0.00017314,2]
[367660117,1750890641264,-317.0,0.00017314,2]
[367660119,1750890641274,-317.0,0.00017314,2]
[367660121,1750890641283,-317.0,0.00017314,2]
[367660123,1750890641295,-317.0,0.00017314,2]
[367660125,1750890641304,-317.0,0.00017314,2]
[367660127,1750890641314,-317.0,0.00017314,2]
[367660129,1750890641324,-317.0,0.00017314,2]
[367660131,1750890641334,-317.0,0.00017314,2]
[367660133,1750890641343,-317.0,0.00017314,2]
[367660135,1750890641353,-317.0,0.00017314,2]
[367660137,1750890641363,-317.0,0.00017314,2]
[367660139,1750890641372,-317.0,0.00017402,2]
[367660141,1750890641382,-317.0,0.00017402,2]
[367660143,1750890641391,-317.0,0.00017402,2]
[367660145,1750890641401,-317.0,0.00017402,2]
[367660147,1750890641411,-626.38024144,0.00017434,2]
[367660149,1750890641420,-520.66461532,0.00017442,2]
[367660151,1750890641429,-1008.41610922,0.00017452,2]
[367660153,1750890641439,-199.28758949,0.00017534,2]
[367660155,1750890641448,-460.0,0.00017534,2]
[367660157,1750890641458,-478.62,0.00017534,2]
[367660159,1750890641469,-460.0,0.00017534,2]
[367660161,1750890641478,-378.74,0.00017534,2]
[367660163,1750890641488,-544.65,0.00017534,2]
[367660165,1750890641497,-591.8,0.00017534,2]
[367660167,1750890641507,-460.0,0.00017534,2]
[367660169,1750890641516,-1386.63,0.00017534,2]
[367660171,1750890641525,-897.71,0.00017534,2]
[367660173,1750890641535,-686.18,0.00017534,2]
[367660175,1750890641544,-952.47,0.00017534,2]
[367660177,1750890641553,-460.0,0.00017534,2]
[367660179,1750890641562,-460.0,0.00017534,2]
[367660181,1750890641571,-460.0,0.00017534,2]
[367660183,1750890641581,-383.29,0.00017534,2]
[367660185,1750890641590,-460.0,0.00017534,2]
[367660187,1750890641600,-695.34,0.00017534,2]
[367660189,1750890641609,-460.0,0.00017534,2]
[367660191,1750890641618,-677.71,0.00017534,2]
[367660193,1750890641627,-460.0,0.00017534,2]
[367660195,1750890641637,-480.33,0.00017534,2]
[367660197,1750890641646,-460.0,0.00017534,2]
[367660199,1750890641655,-666.71,0.00017534,2]
[367660201,1750890641664,-460.0,0.00017534,2]
[367660203,1750890641674,-460.0,0.00017534,2]
[367660205,1750890641683,-497.59,0.00017534,2]
[367660207,1750890641693,-460.0,0.00017534,2]
[367660209,1750890641703,-460.0,0.00017534,2]
[367660211,1750890641712,-323.57981548,0.000176,2]
[367660213,1750890641721,-500.0,0.000176,2]
[367660215,1750890641730,-500.0,0.000176,2]
[367660217,1750890641740,-2076.39445309,0.000176,2]
[367660219,1750890641749,-500.0,0.00017688,2]
[367660221,1750890641759,-500.0,0.00017688,2]
[367660223,1750890641768,-500.0,0.00017689,2]
[367660225,1750890641778,-500.0,0.0001771,2]
[367660227,1750890641787,-500.0,0.0001771,2]
[367660229,1750890641797,-500.0,0.0001771,2]
[367660231,1750890641806,-500.0,0.0001771,2]
[367660233,1750890641815,-500.0,0.0001771,2]
[367660235,1750890641824,-500.0,0.0001771,2]
[367660237,1750890641833,-512.51280788,0.0001771,2]
[367660239,1750890641842,-500.0,0.0001771,2]
[367660241,1750890641851,-500.0,0.0001771,2]
[367660243,1750890641860,-502.89171688,0.0001771,2]
[367660245,1750890641870,-500.0,0.0001771,2]
[367660247,1750890641879,-500.0,0.0001771,2]
[367660249,1750890641888,-500.0,0.0001771,2]
[367660251,1750890641897,-1008.41610922,0.00017728,2]
[367660253,1750890641912,-500.0,0.00017732,2]
[367660255,1750890641921,-500.0,0.0001776,2]
[367660257,1750890641931,-500.0,0.0001776,2]
[367660259,1750890641940,-228.18855443,0.0001776,2]
[367660261,1750890641949,-500.0,0.00017796,2]
[367660263,1750890641959,-274.63795306,0.00017796,2]
[367660265,1750890641968,-460.0,0.00017808,2]
[367660267,1750890641978,-478.62,0.00017808,2]
[367660269,1750890641987,-460.0,0.00017808,2]
[367660271,1750890641997,-544.65,0.00017808,2]
[367660273,1750890642006,-591.8,0.00017808,2]
[367660275,1750890642015,-460.0,0.00017808,2]
[367660277,1750890642024,-1386.63,0.00017808,2]
[367660279,1750890642034,-897.71,0.00017808,2]
[367660281,1750890642044,-686.18,0.00017808,2]
[367660283,1750890642054,-952.47,0.00017808,2]
[367660285,1750890642063,-460.0,0.00017808,2]
[367660287,1750890642074,-460.0,0.00017808,2]
[367660289,1750890642084,-460.0,0.00017808,2]
[367660291,1750890642093,-460.0,0.00017808,2]
[367660293,1750890642102,-695.34,0.00017808,2]
[367660295,1750890642111,-460.0,0.00017808,2]
[367660297,1750890642120,-677.71,0.00017808,2]
[367660299,1750890642130,-460.0,0.00017808,2]
[367660301,1750890642140,-460.0,0.00017808,2]
[367660302,1750890642149,-666.71,0.00017808,2]
[367660304,1750890642158,-460.0,0.00017808,2]
[367660307,1750890642168,-460.0,0.00017808,2]
[367660309,1750890642177,-497.59,0.00017808,2]
[367660310,1750890642186,-460.0,0.00017808,2]
[367660313,1750890642201,-460.0,0.00017808,2]
[367660315,1750890642211,-562.69625406,0.00017897,2]
[367660316,1750890642221,-412.78763217,0.00017897,2]
[367660319,1750890642230,-500.0,0.00017897,2]
[367660320,1750890642239,-500.0,0.00017897,2]
[367660323,1750890642248,-500.0,0.00017897,2]
[367660325,1750890642258,-500.0,0.00017897,2]
[367660327,1750890642267,-500.0,0.00017897,2]
[367660329,1750890642276,-500.0,0.00017897,2]
[367660331,1750890642286,-500.0,0.00017897,2]
[367660333,1750890642295,-420.0,0.0001796,2]
[367660334,1750890642304,-399.89774576,0.00017977,2]
[367660336,1750890642314,-500.0,0.00017977,2]
[367660338,1750890642323,-500.0,0.00017977,2]
[367660340,1750890642332,-500.0,0.00017977,2]
[367660342,1750890642341,-500.0,0.00017977,2]
[367660344,1750890642350,-500.0,0.00017977,2]
[367660346,1750890642359,-500.0,0.00017977,2]
[367660349,1750890642369,-500.0,0.00017977,2]
[367660351,1750890642378,-160.0,0.00017978,2]
[367660354,1750890642387,-836.86812089,0.00017978,2]
[367660357,1750890642397,-160.0,0.00017978,2]
[367660359,1750890642406,-230.22714675,0.00017978,2]
[367660361,1750890642415,-12558.06783089,0.00017978,2]
[367660364,1750890642424,-160.0,0.00017978,2]
[367660368,1750890642434,-160.0,0.00017978,2]